[Event "Titled Tuesday Blitz July 20 2021"]
[White "Golubenko, Valentina"]
[Black "Vukovic, Zdravko"]
[WhiteFideId "4501993"]
[BlackFideId "900877"]
[WhiteElo "2164"]
[BlackElo "2592"]
[Result "0-1"]
[Round "07"]
[TimeControl "180+1"]
[Date "2021.07.21"]
[WhiteClock "0:00:12"]
[BlackClock "0:01:22"]

1. d4 {[%clk 0:03:00]}  d5 {[%clk 0:02:59]} 2. g3 {[%clk 0:03:01]}  Nf6 {[%clk 0:02:58]} 3. Bg2 {[%clk 0:03:01]}  e6 {[%clk 0:02:59]} 4. Nf3 {[%clk 0:03:00]}  b5 {[%clk 0:02:59]} 5. O-O {[%clk 0:03:00]}  Nbd7 {[%clk 0:02:59]} 6. a4 {[%clk 0:03:00]}  b4 {[%clk 0:03:00]} 7. c4 {[%clk 0:03:00]}  bxc3 {[%clk 0:03:00]} 8. Nxc3 {[%clk 0:03:00]}  Ba6 {[%clk 0:03:00]} 9. Re1 {[%clk 0:02:59]}  Be7 {[%clk 0:03:00]} 10. e4 {[%clk 0:02:59]}  dxe4 {[%clk 0:03:00]} 11. Ng5 {[%clk 0:02:59]}  O-O {[%clk 0:02:52]} 12. Ngxe4 {[%clk 0:02:55]}  Rb8 {[%clk 0:02:51]} 13. Qc2 {[%clk 0:02:41]}  c5 {[%clk 0:02:45]} 14. Nxf6+ {[%clk 0:02:15]}  Nxf6 {[%clk 0:02:38]} 15. dxc5 {[%clk 0:02:08]}  Bxc5 {[%clk 0:02:36]} 16. Ne4 {[%clk 0:01:55]}  Bd4 {[%clk 0:02:11]} 17. Rd1 {[%clk 0:01:46]}  Rc8 {[%clk 0:02:06]} 18. Qd2 {[%clk 0:01:15]}  e5 {[%clk 0:02:00]} 19. Qe1 {[%clk 0:00:26]}  Nxe4 {[%clk 0:01:49]} 20. Bxe4 {[%clk 0:00:25]}  f5 {[%clk 0:01:46]} 21. Bd3 {[%clk 0:00:22]}  Bxd3 {[%clk 0:01:40]} 22. Rxd3 {[%clk 0:00:21]}  Bxf2+ {[%clk 0:01:40]} 23. Qxf2 {[%clk 0:00:21]}  Qxd3 {[%clk 0:01:40]} 24. Be3 {[%clk 0:00:20]}  Rc2 {[%clk 0:01:38]} 25. Qf3 {[%clk 0:00:20]}  e4 {[%clk 0:01:37]} 26. Qf4 {[%clk 0:00:21]}  Qe2 {[%clk 0:01:36]} 27. Bf2 {[%clk 0:00:21]}  Qf3 {[%clk 0:01:35]} 28. Qxf3 {[%clk 0:00:20]}  exf3 {[%clk 0:01:35]} 29. b4 {[%clk 0:00:20]}  Re8 {[%clk 0:01:35]} 30. b5 {[%clk 0:00:14]}  Ree2 {[%clk 0:01:30]} 31. Bxa7 {[%clk 0:00:12]}  Rxh2 {[%clk 0:01:23]} 32. b6 {[%clk 0:00:11]}  Rcg2+ {[%clk 0:01:22]} 33. Kf1 {[%clk 0:00:12]}  Rh1# {[%clk 0:01:22]} 0-1


[Site "https://www.chess.com"]

[Event "Titled Tuesday Blitz July 20 2021"]
[White "Grabinsky, Aaron"]
[Black "Perez Gormaz, Matias"]
[WhiteFideId "2087090"]
[BlackFideId "3406342"]
[WhiteElo "2353"]
[BlackElo "2414"]
[Result "1-0"]
[Round "07"]
[TimeControl "180+1"]
[Date "2021.07.20"]
[WhiteClock "0:00:10"]
[BlackClock "0:00:07"]

1. b3 {[%clk 0:03:00]}  d5 {[%clk 0:02:59]} 2. Bb2 {[%clk 0:03:00]}  Bg4 {[%clk 0:03:00]} 3. f3 {[%clk 0:03:00]}  Bh5 {[%clk 0:02:59]} 4. e4 {[%clk 0:03:01]}  dxe4 {[%clk 0:02:58]} 5. Qe2 {[%clk 0:03:02]}  c6 {[%clk 0:02:58]} 6. Qxe4 {[%clk 0:03:02]}  Nf6 {[%clk 0:02:56]} 7. Qe2 {[%clk 0:03:00]}  Nbd7 {[%clk 0:02:55]} 8. Nc3 {[%clk 0:03:00]}  e6 {[%clk 0:02:53]} 9. Nh3 {[%clk 0:02:58]}  Qa5 {[%clk 0:02:51]} 10. g3 {[%clk 0:02:51]}  Bg6 {[%clk 0:02:46]} 11. Bg2 {[%clk 0:02:43]}  Bc5 {[%clk 0:02:37]} 12. O-O-O {[%clk 0:02:35]}  Ba3 {[%clk 0:02:30]} 13. Nf2 {[%clk 0:02:32]}  O-O-O {[%clk 0:02:28]} 14. f4 {[%clk 0:02:28]}  Nb6 {[%clk 0:02:17]} 15. Kb1 {[%clk 0:02:25]}  Bxb2 {[%clk 0:02:17]} 16. Kxb2 {[%clk 0:02:26]}  Rd4 {[%clk 0:02:14]} 17. Rhe1 {[%clk 0:02:17]}  Rhd8 {[%clk 0:02:13]} 18. Qe3 {[%clk 0:02:17]}  Qb4 {[%clk 0:02:08]} 19. d3 {[%clk 0:02:01]}  R4d7 {[%clk 0:01:25]} 20. a3 {[%clk 0:01:56]}  Qd4 {[%clk 0:01:23]} 21. Qxd4 {[%clk 0:01:54]}  Rxd4 {[%clk 0:01:24]} 22. Re5 {[%clk 0:01:48]}  Nbd7 {[%clk 0:01:23]} 23. Re3 {[%clk 0:01:47]}  Nc5 {[%clk 0:01:22]} 24. Rde1 {[%clk 0:01:46]}  a5 {[%clk 0:01:22]} 25. Re5 {[%clk 0:01:43]}  Nfd7 {[%clk 0:01:20]} 26. R5e3 {[%clk 0:01:41]}  Nf6 {[%clk 0:01:21]} 27. Ne2 {[%clk 0:01:34]}  R4d6 {[%clk 0:01:20]} 28. g4 {[%clk 0:01:30]}  h5 {[%clk 0:01:16]} 29. h3 {[%clk 0:01:30]}  hxg4 {[%clk 0:01:14]} 30. hxg4 {[%clk 0:01:31]}  Rh8 {[%clk 0:01:15]} 31. Rh1 {[%clk 0:01:24]}  Rdd8 {[%clk 0:01:14]} 32. Reh3 {[%clk 0:01:22]}  Rxh3 {[%clk 0:01:13]} 33. Rxh3 {[%clk 0:01:23]}  Kc7 {[%clk 0:01:00]} 34. Bf3 {[%clk 0:01:22]}  Nd5 {[%clk 0:00:51]} 35. Bxd5 {[%clk 0:01:14]}  cxd5 {[%clk 0:00:51]} 36. Nd4 {[%clk 0:01:11]}  f6 {[%clk 0:00:20]} 37. b4 {[%clk 0:01:05]}  axb4 {[%clk 0:00:21]} 38. axb4 {[%clk 0:01:05]}  e5 {[%clk 0:00:20]} 39. bxc5 {[%clk 0:00:37]}  exd4 {[%clk 0:00:21]} 40. f5 {[%clk 0:00:38]}  Bf7 {[%clk 0:00:22]} 41. Rh7 {[%clk 0:00:38]}  Rg8 {[%clk 0:00:22]} 42. Nh3 {[%clk 0:00:38]}  Kc6 {[%clk 0:00:22]} 43. g5 {[%clk 0:00:31]}  Kxc5 {[%clk 0:00:23]} 44. gxf6 {[%clk 0:00:25]}  Kd6 {[%clk 0:00:23]} 45. Ng5 {[%clk 0:00:20]}  Ke5 {[%clk 0:00:07]} 46. Nxf7+ {[%clk 0:00:16]}  Kxf6 {[%clk 0:00:07]} 47. Nd6 {[%clk 0:00:14]}  Rd8 {[%clk 0:00:08]} 48. Nb5 {[%clk 0:00:11]}  Kxf5 {[%clk 0:00:08]} 49. Nxd4+ {[%clk 0:00:12]}  Kf6 {[%clk 0:00:07]} 50. Rxg7 {[%clk 0:00:11]}  Rb8 {[%clk 0:00:05]} 51. Rc7 {[%clk 0:00:10]}  Ke5 {[%clk 0:00:05]} 52. c3 {[%clk 0:00:09]}  Kd6 {[%clk 0:00:06]} 53. Nb5+ {[%clk 0:00:10]}  Ke5 {[%clk 0:00:07]} 54. Kb3 {[%clk 0:00:10]}  b6 {[%clk 0:00:07]} 55. Re7+ {[%clk 0:00:10]}  Kf6 {[%clk 0:00:07]} 56. Re1 {[%clk 0:00:11]}  Ra8 {[%clk 0:00:07]} 57. Nc7 {[%clk 0:00:10]}  Rd8 {[%clk 0:00:07]} 58. Re6+ {[%clk 0:00:09]}  Kf5 {[%clk 0:00:08]} 59. Rxb6 {[%clk 0:00:09]}  Ke5 {[%clk 0:00:08]} 60. Rb5 {[%clk 0:00:09]}  Rd7 {[%clk 0:00:07]} 61. Nxd5 {[%clk 0:00:09]}  Ke6 {[%clk 0:00:05]} 62. Nf4+ {[%clk 0:00:09]}  Kf6 {[%clk 0:00:06]} 63. d4 {[%clk 0:00:10]}  Ra7 {[%clk 0:00:06]} 64. Nd5+ {[%clk 0:00:10]}  Ke6 {[%clk 0:00:06]} 65. Nb4 {[%clk 0:00:11]}  Kd6 {[%clk 0:00:07]} 66. Rd5+ {[%clk 0:00:10]}  Kc7 {[%clk 0:00:06]} 67. Re5 {[%clk 0:00:11]}  Ra1 {[%clk 0:00:07]} 68. Kc4 {[%clk 0:00:11]}  Kd6 {[%clk 0:00:08]} 69. Rh5 {[%clk 0:00:10]}  Rh1 {[%clk 0:00:07]} 70. Rxh1 {[%clk 0:00:10]} 1-0


[Site "https://www.chess.com"]

[Event "Titled Tuesday Blitz July 20 2021"]
[White "Gurevich, Dmitry"]
[Black "Begunov, Konstantin"]
[WhiteFideId "2000407"]
[BlackFideId "4118510"]
[WhiteElo "2506"]
[BlackElo "2262"]
[Result "1/2-1/2"]
[Round "07"]
[TimeControl "180+1"]
[Date "2021.07.21"]
[WhiteClock "0:00:44"]
[BlackClock "0:00:24"]

1. d4 {[%clk 0:02:59]}  d5 {[%clk 0:02:59]} 2. c4 {[%clk 0:02:58]}  c6 {[%clk 0:03:00]} 3. cxd5 {[%clk 0:02:58]}  cxd5 {[%clk 0:02:59]} 4. Bg5 {[%clk 0:02:59]}  h6 {[%clk 0:02:59]} 5. Bh4 {[%clk 0:02:58]}  Nc6 {[%clk 0:02:59]} 6. Nc3 {[%clk 0:02:57]}  g5 {[%clk 0:02:52]} 7. Bg3 {[%clk 0:02:56]}  Bg7 {[%clk 0:02:50]} 8. e3 {[%clk 0:02:56]}  Nf6 {[%clk 0:02:47]} 9. h4 {[%clk 0:02:55]}  Qb6 {[%clk 0:02:39]} 10. Qd2 {[%clk 0:02:42]}  Bf5 {[%clk 0:02:33]} 11. hxg5 {[%clk 0:02:40]}  hxg5 {[%clk 0:02:34]} 12. Rxh8+ {[%clk 0:02:38]}  Bxh8 {[%clk 0:02:35]} 13. Nf3 {[%clk 0:02:34]}  g4 {[%clk 0:02:18]} 14. Ne5 {[%clk 0:02:32]}  Ne4 {[%clk 0:02:02]} 15. Nxe4 {[%clk 0:02:29]}  Bxe4 {[%clk 0:02:02]} 16. Nxc6 {[%clk 0:02:22]}  bxc6 {[%clk 0:01:57]} 17. Rc1 {[%clk 0:02:19]}  Kd7 {[%clk 0:01:44]} 18. Be2 {[%clk 0:02:17]}  Rg8 {[%clk 0:01:36]} 19. Kf1 {[%clk 0:02:15]}  e6 {[%clk 0:01:32]} 20. b3 {[%clk 0:02:10]}  Bf6 {[%clk 0:01:25]} 21. Qc3 {[%clk 0:02:03]}  Be7 {[%clk 0:01:23]} 22. Bd3 {[%clk 0:01:57]}  Ba3 {[%clk 0:01:17]} 23. Rd1 {[%clk 0:01:49]}  Bb4 {[%clk 0:01:17]} 24. Qc2 {[%clk 0:01:48]}  Bxd3+ {[%clk 0:01:14]} 25. Qxd3 {[%clk 0:01:46]}  Qb5 {[%clk 0:01:12]} 26. Ke2 {[%clk 0:01:37]}  Rc8 {[%clk 0:01:08]} 27. Rc1 {[%clk 0:01:35]}  a6 {[%clk 0:01:00]} 28. a4 {[%clk 0:01:32]}  Qxd3+ {[%clk 0:00:58]} 29. Kxd3 {[%clk 0:01:31]}  c5 {[%clk 0:00:39]} 30. dxc5 {[%clk 0:01:29]}  Rxc5 {[%clk 0:00:39]} 31. Rxc5 {[%clk 0:01:28]}  Bxc5 {[%clk 0:00:39]} 32. Be5 {[%clk 0:01:25]}  Kc6 {[%clk 0:00:36]} 33. Bd4 {[%clk 0:01:20]}  Bb4 {[%clk 0:00:36]} 34. e4 {[%clk 0:01:12]}  dxe4+ {[%clk 0:00:33]} 35. Kxe4 {[%clk 0:01:11]}  Bd6 {[%clk 0:00:32]} 36. Bc3 {[%clk 0:01:07]}  f5+ {[%clk 0:00:32]} 37. Kd3 {[%clk 0:01:07]}  Bc5 {[%clk 0:00:27]} 38. f3 {[%clk 0:01:06]}  gxf3 {[%clk 0:00:27]} 39. gxf3 {[%clk 0:01:06]}  Kd5 {[%clk 0:00:27]} 40. b4 {[%clk 0:01:05]}  Bb6 {[%clk 0:00:25]} 41. Bb2 {[%clk 0:00:48]}  e5 {[%clk 0:00:25]} 42. b5 {[%clk 0:00:47]}  axb5 {[%clk 0:00:25]} 43. axb5 {[%clk 0:00:47]}  e4+ {[%clk 0:00:23]} 44. fxe4+ {[%clk 0:00:46]}  fxe4+ {[%clk 0:00:24]} 45. Ke2 {[%clk 0:00:46]}  Kc4 {[%clk 0:00:24]} 46. Bc1 {[%clk 0:00:45]}  Kxb5 {[%clk 0:00:24]} 47. Be3 {[%clk 0:00:45]}  Ba5 {[%clk 0:00:24]} 48. Bf2 {[%clk 0:00:44]}  Kc4 {[%clk 0:00:24]} 49. Bg1 {[%clk 0:00:44]}  Bc3 {[%clk 0:00:23]} 50. Bf2 {[%clk 0:00:44]}  Bd4 {[%clk 0:00:23]} 51. Bg3 {[%clk 0:00:44]}  Kd5 {[%clk 0:00:22]} 52. Be1 {[%clk 0:00:44]}  Bc5 {[%clk 0:00:22]} 53. Bd2 {[%clk 0:00:43]}  Bd4 {[%clk 0:00:23]} 54. Be1 {[%clk 0:00:43]}  Bc5 {[%clk 0:00:23]} 55. Bd2 {[%clk 0:00:43]}  Bd4 {[%clk 0:00:24]} 56. Be1 {[%clk 0:00:44]} 1/2-1/2


[Site "https://www.chess.com"]

[Event "Titled Tuesday Blitz July 20 2021"]
[White "Gusarov, Grigory"]
[Black "Eynullayev, Atilla"]
[WhiteFideId "24102172"]
[BlackFideId "13413570"]
[WhiteElo "2269"]
[BlackElo "1997"]
[Result "0-1"]
[Round "07"]
[TimeControl "180+1"]
[Date "2021.07.21"]
[WhiteClock "0:00:54"]
[BlackClock "0:00:52"]

1. d4 {[%clk 0:03:00]}  Nf6 {[%clk 0:02:58]} 2. Nf3 {[%clk 0:02:55]}  e6 {[%clk 0:02:58]} 3. c4 {[%clk 0:02:55]}  d5 {[%clk 0:02:58]} 4. g3 {[%clk 0:02:56]}  Bb4+ {[%clk 0:02:57]} 5. Bd2 {[%clk 0:02:55]}  Be7 {[%clk 0:02:58]} 6. Bg2 {[%clk 0:02:55]}  O-O {[%clk 0:02:58]} 7. O-O {[%clk 0:02:54]}  Nbd7 {[%clk 0:02:59]} 8. Qc2 {[%clk 0:02:49]}  c6 {[%clk 0:02:58]} 9. Rd1 {[%clk 0:02:46]}  b6 {[%clk 0:02:58]} 10. b3 {[%clk 0:02:33]}  Bb7 {[%clk 0:02:53]} 11. Bc3 {[%clk 0:02:25]}  Ne4 {[%clk 0:02:52]} 12. Bb2 {[%clk 0:02:22]}  Rc8 {[%clk 0:02:50]} 13. Nbd2 {[%clk 0:02:20]}  f5 {[%clk 0:02:47]} 14. Ne5 {[%clk 0:02:15]}  Nxe5 {[%clk 0:02:45]} 15. dxe5 {[%clk 0:02:15]}  Qe8 {[%clk 0:02:35]} 16. Nf3 {[%clk 0:02:05]}  f4 {[%clk 0:02:26]} 17. Nd4 {[%clk 0:02:02]}  Qg6 {[%clk 0:01:57]} 18. f3 {[%clk 0:01:56]}  fxg3 {[%clk 0:01:32]} 19. fxe4 {[%clk 0:01:54]}  gxh2+ {[%clk 0:01:32]} 20. Kh1 {[%clk 0:01:51]}  Rf2 {[%clk 0:01:28]} 21. Bf3 {[%clk 0:01:47]}  Rf8 {[%clk 0:01:14]} 22. exd5 {[%clk 0:01:37]}  Qg3 {[%clk 0:01:09]} 23. Rf1 {[%clk 0:01:00]}  R8xf3 {[%clk 0:00:53]} 24. Nxf3 {[%clk 0:00:54]}  Qg2# {[%clk 0:00:52]} 0-1


[Site "https://www.chess.com"]

[Event "Titled Tuesday Blitz July 20 2021"]
[White "Harshavardhan G B"]
[Black "Molina, Roberto Junio Brito"]
[WhiteFideId "25059009"]
[BlackFideId "2109450"]
[WhiteElo "2536"]
[BlackElo "2734"]
[Result "1-0"]
[Round "07"]
[TimeControl "180+1"]
[Date "2021.07.21"]
[WhiteClock "0:00:14"]
[BlackClock "0:00:01"]

1. d4 {[%clk 0:03:00]}  d5 {[%clk 0:02:56]} 2. c4 {[%clk 0:02:51]}  c6 {[%clk 0:02:55]} 3. Nf3 {[%clk 0:02:51]}  Nf6 {[%clk 0:02:54]} 4. Nc3 {[%clk 0:02:52]}  dxc4 {[%clk 0:02:53]} 5. a4 {[%clk 0:02:51]}  Bf5 {[%clk 0:02:52]} 6. Ne5 {[%clk 0:02:52]}  Nbd7 {[%clk 0:02:52]} 7. Nxc4 {[%clk 0:02:52]}  Nb6 {[%clk 0:02:51]} 8. Ne5 {[%clk 0:02:52]}  a5 {[%clk 0:02:47]} 9. h4 {[%clk 0:02:52]}  h6 {[%clk 0:02:46]} 10. f3 {[%clk 0:02:52]}  Nfd7 {[%clk 0:02:43]} 11. Bf4 {[%clk 0:02:41]}  Nxe5 {[%clk 0:02:38]} 12. Bxe5 {[%clk 0:02:42]}  Nd7 {[%clk 0:02:27]} 13. Bg3 {[%clk 0:02:37]}  Qb6 {[%clk 0:02:25]} 14. Qd2 {[%clk 0:02:31]}  e6 {[%clk 0:02:22]} 15. e4 {[%clk 0:02:31]}  Bh7 {[%clk 0:02:18]} 16. Be2 {[%clk 0:02:29]}  Be7 {[%clk 0:02:11]} 17. O-O {[%clk 0:02:26]}  O-O {[%clk 0:02:10]} 18. Kh1 {[%clk 0:02:24]}  Rfc8 {[%clk 0:02:04]} 19. Bf2 {[%clk 0:02:21]}  Qd8 {[%clk 0:02:04]} 20. g3 {[%clk 0:02:20]}  e5 {[%clk 0:01:55]} 21. Rad1 {[%clk 0:02:13]}  Bb4 {[%clk 0:01:46]} 22. Kg2 {[%clk 0:02:09]}  Qe7 {[%clk 0:01:43]} 23. Qc2 {[%clk 0:02:07]}  Rd8 {[%clk 0:01:35]} 24. Rd2 {[%clk 0:01:36]}  exd4 {[%clk 0:01:31]} 25. Bxd4 {[%clk 0:01:34]}  Nf8 {[%clk 0:01:23]} 26. Rfd1 {[%clk 0:01:32]}  Ne6 {[%clk 0:01:20]} 27. Bf2 {[%clk 0:01:29]}  Rxd2 {[%clk 0:01:09]} 28. Rxd2 {[%clk 0:01:24]}  Rd8 {[%clk 0:01:08]} 29. Bc4 {[%clk 0:01:20]}  Kf8 {[%clk 0:00:48]} 30. Bb6 {[%clk 0:00:56]}  Rxd2+ {[%clk 0:00:33]} 31. Qxd2 {[%clk 0:00:57]}  g5 {[%clk 0:00:26]} 32. hxg5 {[%clk 0:00:51]}  hxg5 {[%clk 0:00:26]} 33. Qe3 {[%clk 0:00:35]}  Bc5 {[%clk 0:00:21]} 34. Bxc5 {[%clk 0:00:32]}  Qxc5 {[%clk 0:00:22]} 35. Qd3 {[%clk 0:00:32]}  Ke7 {[%clk 0:00:17]} 36. Bxe6 {[%clk 0:00:26]}  fxe6 {[%clk 0:00:18]} 37. Ne2 {[%clk 0:00:25]}  g4 {[%clk 0:00:11]} 38. fxg4 {[%clk 0:00:17]}  Qb4 {[%clk 0:00:10]} 39. Kf3 {[%clk 0:00:17]}  Qxb2 {[%clk 0:00:09]} 40. g5 {[%clk 0:00:17]}  Qb4 {[%clk 0:00:05]} 41. Nf4 {[%clk 0:00:16]}  Qxa4 {[%clk 0:00:02]} 42. g6 {[%clk 0:00:16]}  Bg8 {[%clk 0:00:02]} 43. Kg4 {[%clk 0:00:15]}  Qb5 {[%clk 0:00:03]} 44. Qc3 {[%clk 0:00:14]}  e5 {[%clk 0:00:01]} 45. Nd3 {[%clk 0:00:14]} 1-0


[Site "https://www.chess.com"]

[Event "Titled Tuesday Blitz July 20 2021"]
[White "Kamsky, Gata"]
[Black "Tsaruk, Maksim"]
[WhiteFideId "2000024"]
[BlackFideId "13511173"]
[WhiteElo "2644"]
[BlackElo "2184"]
[Result "1-0"]
[Round "07"]
[TimeControl "180+1"]
[Date "2021.07.20"]
[WhiteClock "0:00:44"]
[BlackClock "0:00:01"]

1. e4 {[%clk 0:03:00]}  e5 {[%clk 0:02:59]} 2. Nf3 {[%clk 0:03:00]}  Nc6 {[%clk 0:02:59]} 3. Bb5 {[%clk 0:02:56]}  a6 {[%clk 0:02:59]} 4. Ba4 {[%clk 0:02:56]}  Nf6 {[%clk 0:02:59]} 5. O-O {[%clk 0:02:56]}  Be7 {[%clk 0:02:56]} 6. Re1 {[%clk 0:02:54]}  b5 {[%clk 0:02:54]} 7. Bb3 {[%clk 0:02:54]}  d6 {[%clk 0:02:55]} 8. c3 {[%clk 0:02:54]}  O-O {[%clk 0:02:55]} 9. d4 {[%clk 0:02:54]}  Bg4 {[%clk 0:02:55]} 10. d5 {[%clk 0:02:55]}  Na5 {[%clk 0:02:55]} 11. Bc2 {[%clk 0:02:55]}  c6 {[%clk 0:02:56]} 12. h3 {[%clk 0:02:56]}  Bc8 {[%clk 0:02:56]} 13. dxc6 {[%clk 0:02:56]}  Qc7 {[%clk 0:02:56]} 14. Nbd2 {[%clk 0:02:56]}  Qxc6 {[%clk 0:02:57]} 15. Nf1 {[%clk 0:02:57]}  Re8 {[%clk 0:02:55]} 16. Ng3 {[%clk 0:02:57]}  h6 {[%clk 0:02:43]} 17. Nh4 {[%clk 0:02:48]}  Be6 {[%clk 0:01:17]} 18. Nhf5 {[%clk 0:02:45]}  Rac8 {[%clk 0:01:16]} 19. Nxe7+ {[%clk 0:02:35]}  Rxe7 {[%clk 0:01:13]} 20. Qf3 {[%clk 0:02:25]}  Nd7 {[%clk 0:01:02]} 21. Nh5 {[%clk 0:02:15]}  f5 {[%clk 0:00:24]} 22. exf5 {[%clk 0:02:00]}  Qxf3 {[%clk 0:00:24]} 23. gxf3 {[%clk 0:02:00]}  Bf7 {[%clk 0:00:23]} 24. Ng3 {[%clk 0:01:58]}  b4 {[%clk 0:00:12]} 25. Rd1 {[%clk 0:01:49]}  d5 {[%clk 0:00:04]} 26. Bd2 {[%clk 0:01:36]}  Nc4 {[%clk 0:00:04]} 27. cxb4 {[%clk 0:01:34]}  Nxb2 {[%clk 0:00:02]} 28. Rdc1 {[%clk 0:01:34]}  Nb6 {[%clk 0:00:02]} 29. Bb3 {[%clk 0:01:21]}  N2c4 {[%clk 0:00:01]} 30. Be1 {[%clk 0:01:17]}  Rec7 {[%clk 0:00:01]} 31. a4 {[%clk 0:01:09]}  Nd6 {[%clk 0:00:02]} 32. Rxc7 {[%clk 0:01:07]}  Rxc7 {[%clk 0:00:03]} 33. b5 {[%clk 0:01:06]}  axb5 {[%clk 0:00:02]} 34. a5 {[%clk 0:01:06]}  Nbc4 {[%clk 0:00:02]} 35. Bb4 {[%clk 0:01:03]}  Nc8 {[%clk 0:00:02]} 36. a6 {[%clk 0:01:02]}  Na7 {[%clk 0:00:02]} 37. f4 {[%clk 0:00:57]}  exf4 {[%clk 0:00:02]} 38. Ne2 {[%clk 0:00:57]}  f3 {[%clk 0:00:02]} 39. Nd4 {[%clk 0:00:57]}  Be8 {[%clk 0:00:01]} 40. Re1 {[%clk 0:00:55]}  Bd7 {[%clk 0:00:01]} 41. Bd1 {[%clk 0:00:48]}  Nb6 {[%clk 0:00:01]} 42. Ba5 {[%clk 0:00:44]} 1-0


[Site "https://www.chess.com"]

[Event "Titled Tuesday Blitz July 20 2021"]
[White "Kilpatrick, Callum"]
[Black "Darini, Pouria"]
[WhiteFideId "414425"]
[BlackFideId "12502200"]
[WhiteElo "2477"]
[BlackElo "2489"]
[Result "0-1"]
[Round "07"]
[TimeControl "180+1"]
[Date "2021.07.21"]
[WhiteClock "0:01:32"]
[BlackClock "0:00:53"]

1. e4 {[%clk 0:02:55]}  c6 {[%clk 0:01:56]} 2. Nc3 {[%clk 0:02:53]}  d5 {[%clk 0:01:56]} 3. Nf3 {[%clk 0:02:54]}  dxe4 {[%clk 0:01:56]} 4. Nxe4 {[%clk 0:02:55]}  Nf6 {[%clk 0:01:57]} 5. Nxf6+ {[%clk 0:02:55]}  exf6 {[%clk 0:01:58]} 6. d4 {[%clk 0:02:53]}  Bd6 {[%clk 0:01:58]} 7. Be2 {[%clk 0:02:54]}  O-O {[%clk 0:01:59]} 8. O-O {[%clk 0:02:54]}  Re8 {[%clk 0:01:59]} 9. Re1 {[%clk 0:02:48]}  Nd7 {[%clk 0:02:00]} 10. h3 {[%clk 0:02:42]}  Nf8 {[%clk 0:02:00]} 11. c4 {[%clk 0:02:42]}  Be6 {[%clk 0:02:00]} 12. Be3 {[%clk 0:02:42]}  Qd7 {[%clk 0:02:00]} 13. Qd2 {[%clk 0:02:36]}  Ng6 {[%clk 0:01:57]} 14. Bf1 {[%clk 0:02:35]}  Rad8 {[%clk 0:01:58]} 15. Rad1 {[%clk 0:02:32]}  Bb8 {[%clk 0:01:48]} 16. b3 {[%clk 0:02:24]}  Bf5 {[%clk 0:01:47]} 17. d5 {[%clk 0:02:11]}  Be4 {[%clk 0:01:35]} 18. dxc6 {[%clk 0:02:09]}  Qc7 {[%clk 0:01:22]} 19. Qxd8 {[%clk 0:01:51]}  Rxd8 {[%clk 0:01:22]} 20. Rxd8+ {[%clk 0:01:45]}  Qxd8 {[%clk 0:01:23]} 21. cxb7 {[%clk 0:01:36]}  Bxb7 {[%clk 0:01:13]} 22. c5 {[%clk 0:01:34]}  h5 {[%clk 0:01:11]} 23. b4 {[%clk 0:01:32]}  Qc7 {[%clk 0:01:08]} 24. Bc4 {[%clk 0:01:30]}  Bxf3 {[%clk 0:01:00]} 25. gxf3 {[%clk 0:01:31]}  Qh2+ {[%clk 0:01:01]} 26. Kf1 {[%clk 0:01:31]}  Qxh3+ {[%clk 0:01:00]} 27. Ke2 {[%clk 0:01:31]}  Qf5 {[%clk 0:00:53]} 28. Rd1 {[%clk 0:01:31]}  Qc2+ {[%clk 0:00:52]} 29. Rd2 {[%clk 0:01:32]}  Qxc4+ {[%clk 0:00:53]} 0-1


[Site "https://www.chess.com"]

[Event "Titled Tuesday Blitz July 20 2021"]
[White "Lagunow, Raphael"]
[Black "Quintiliano Pinto, Renato R."]
[WhiteFideId "24652644"]
[BlackFideId "2117568"]
[WhiteElo "2400"]
[BlackElo "2439"]
[Result "0-1"]
[Round "07"]
[TimeControl "180+1"]
[Date "2021.07.21"]
[WhiteClock "0:00:05"]
[BlackClock "0:00:16"]

1. e4 {[%clk 0:03:00]}  c5 {[%clk 0:02:59]} 2. Nf3 {[%clk 0:03:00]}  d6 {[%clk 0:03:00]} 3. d4 {[%clk 0:03:00]}  cxd4 {[%clk 0:03:01]} 4. Nxd4 {[%clk 0:03:00]}  Nf6 {[%clk 0:03:01]} 5. Nc3 {[%clk 0:03:00]}  a6 {[%clk 0:03:01]} 6. Bg5 {[%clk 0:03:00]}  e6 {[%clk 0:02:58]} 7. f4 {[%clk 0:03:00]}  h6 {[%clk 0:02:58]} 8. Bh4 {[%clk 0:02:58]}  Qb6 {[%clk 0:02:58]} 9. Qd2 {[%clk 0:02:58]}  Qxb2 {[%clk 0:02:57]} 10. Rb1 {[%clk 0:02:58]}  Qa3 {[%clk 0:02:58]} 11. e5 {[%clk 0:02:59]}  dxe5 {[%clk 0:02:56]} 12. fxe5 {[%clk 0:03:00]}  Nfd7 {[%clk 0:02:56]} 13. Ne4 {[%clk 0:03:00]}  Qxa2 {[%clk 0:02:53]} 14. Rd1 {[%clk 0:03:00]}  Qd5 {[%clk 0:02:52]} 15. Qe3 {[%clk 0:02:52]}  Qxe5 {[%clk 0:02:42]} 16. Be2 {[%clk 0:02:27]}  Bc5 {[%clk 0:02:38]} 17. Bg3 {[%clk 0:02:19]}  Qd5 {[%clk 0:02:37]} 18. c4 {[%clk 0:02:17]}  Bxd4 {[%clk 0:02:37]} 19. Rxd4 {[%clk 0:02:18]}  Qa5+ {[%clk 0:02:34]} 20. Rd2 {[%clk 0:02:17]}  O-O {[%clk 0:02:33]} 21. Bd6 {[%clk 0:02:11]}  f5 {[%clk 0:02:31]} 22. Ng3 {[%clk 0:01:56]}  Nf6 {[%clk 0:01:54]} 23. Bxf8 {[%clk 0:01:30]}  Kxf8 {[%clk 0:01:54]} 24. O-O {[%clk 0:01:30]}  Nc6 {[%clk 0:01:34]} 25. c5 {[%clk 0:00:41]}  Nd5 {[%clk 0:00:48]} 26. Rxd5 {[%clk 0:00:09]}  exd5 {[%clk 0:00:49]} 27. Nxf5 {[%clk 0:00:06]}  Bxf5 {[%clk 0:00:49]} 28. Rxf5+ {[%clk 0:00:07]}  Kg8 {[%clk 0:00:49]} 29. Qe6+ {[%clk 0:00:05]}  Kh8 {[%clk 0:00:49]} 30. Bf1 {[%clk 0:00:01]}  Qxc5+ {[%clk 0:00:48]} 31. Kh1 {[%clk 0:00:01]}  Rf8 {[%clk 0:00:43]} 32. Qg6 {[%clk 0:00:01]}  Rxf5 {[%clk 0:00:41]} 33. Qxf5 {[%clk 0:00:02]}  Qe7 {[%clk 0:00:38]} 34. h3 {[%clk 0:00:02]}  Qe4 {[%clk 0:00:35]} 35. Qc8+ {[%clk 0:00:02]}  Kh7 {[%clk 0:00:35]} 36. Qxb7 {[%clk 0:00:03]}  Nd4 {[%clk 0:00:34]} 37. Qxa6 {[%clk 0:00:03]}  Qb1 {[%clk 0:00:18]} 38. Kh2 {[%clk 0:00:02]}  Qb8+ {[%clk 0:00:18]} 39. Kh1 {[%clk 0:00:02]}  Kh8 {[%clk 0:00:15]} 40. Qd3 {[%clk 0:00:02]}  Qe5 {[%clk 0:00:14]} 41. Qd2 {[%clk 0:00:02]}  Nf5 {[%clk 0:00:14]} 42. Bd3 {[%clk 0:00:03]}  Ng3+ {[%clk 0:00:14]} 43. Kh2 {[%clk 0:00:03]}  Ne4+ {[%clk 0:00:14]} 44. Kg1 {[%clk 0:00:04]}  Nxd2 {[%clk 0:00:14]} 45. Kh1 {[%clk 0:00:05]}  Qe1+ {[%clk 0:00:14]} 46. Kh2 {[%clk 0:00:04]}  Qe3 {[%clk 0:00:14]} 47. Bf1 {[%clk 0:00:04]}  Nxf1+ {[%clk 0:00:14]} 48. Kh1 {[%clk 0:00:05]}  Ng3+ {[%clk 0:00:15]} 49. Kh2 {[%clk 0:00:05]}  Qf2 {[%clk 0:00:15]} 50. h4 {[%clk 0:00:05]}  Ne2 {[%clk 0:00:16]} 51. Kh3 {[%clk 0:00:05]}  Qg3# {[%clk 0:00:16]} 0-1


[Site "https://www.chess.com"]